fUST/lending_fUST_20250818
["ID","MTS","AMOUNT","RATE_DAILY","PERIOD"]
[380031842,1755489033018,-481.45474172,0.00019799,2]
[380031844,1755489033027,-483.47712398,0.00019799,2]
[380031846,1755489033038,-185.99072167,0.00019799,2]
[380031848,1755489033051,-295.12593839,0.00019799,2]
[380031851,1755489033061,-482.6814682,0.00019799,2]
[380031853,1755489033072,-107.11629022,0.0001985,2]
[380031973,1755489038801,-326.0,0.0001918,2]
[380031974,1755489038812,-692.88370978,0.0001985,2]
[380031975,1755489038822,-168.603469,0.00019863,2]
[380031976,1755489038831,-8228.80736585,0.000199,2]
[380031977,1755489038840,-432.0667886,0.0002,2]
[380031978,1755489038850,-432.0667886,0.0002,2]
[380031979,1755489038859,-160.34776757,0.0002,2]
[380031980,1755489038870,-160.0,0.0002,3]
[380031981,1755489038880,-160.0,0.0002,3]
[380031982,1755489038890,-480.0,0.00020072,2]
[380031983,1755489038899,-480.0,0.00020083,2]
[380031984,1755489038908,-153.0,0.00020137,2]
[380031985,1755489038919,-306.0,0.00020137,2]
[380031986,1755489038929,-12683.78573522,0.00020255,2]
[380031987,1755489038938,-480.0,0.00020278,2]
[380031988,1755489038948,-8228.80736578,0.00020316,2]
[380031989,1755489038957,-480.0,0.00020346,2]
[380031990,1755489038968,-480.0,0.00020357,2]
[380031991,1755489038977,-153.0,0.00020378,2]
[380031992,1755489038986,-438.8145753,0.00020438,2]
[380031993,1755489038995,-432.0667886,0.00020438,2]
[380031994,1755489039005,-432.0667886,0.00020438,2]
[380031995,1755489039014,-432.0667886,0.00020438,2]
[380031996,1755489039023,-432.0667886,0.00020438,2]
[380031997,1755489039032,-432.0667886,0.00020438,2]
[380031998,1755489039041,-432.0667886,0.00020438,2]
[380031999,1755489039051,-432.0667886,0.00020438,2]
[380032000,1755489039061,-432.0667886,0.00020438,2]
[380032001,1755489039070,-432.0667886,0.00020438,2]
[380032002,1755489039079,-432.0667886,0.00020438,2]
[380032003,1755489039089,-432.0667886,0.00020438,2]
[380032004,1755489039098,-431.0224882,0.00020438,2]
[380032005,1755489039108,-153.0,0.00020478,2]
[380032006,1755489039117,-703.83792946,0.00020517,2]
[380032007,1755489039127,-161.623312,0.00020548,2]
[380032008,1755489039137,-197.0,0.00020575,3]
[380032009,1755489039146,-480.0,0.0002062,2]
[380032010,1755489039155,-480.0,0.00020631,2]
[380032011,1755489039164,-153.0,0.00020685,2]
[380032012,1755489039174,-8228.80736578,0.00020731,2]
[380032013,1755489039185,-480.0,0.00020894,2]
[380032014,1755489039195,-480.0,0.00020905,2]
[380032015,1755489039204,-432.0667886,0.00020959,2]
[380032016,1755489039214,-432.0667886,0.00020959,2]
[380032017,1755489039223,-500.0,0.00021096,2]
[380032018,1755489039232,-151.36327547,0.00021096,2]
[380032019,1755489039242,-151.0,0.00021096,2]
[380032020,1755489039251,-151.0,0.00021096,2]
[380032021,1755489039260,-151.0,0.00021136,2]
[380032022,1755489039270,-152.50315018,0.00021136,2]
[380032023,1755489039279,-160.0,0.00021137,2]
[380032024,1755489039288,-160.0,0.00021137,2]
[380032025,1755489039297,-160.0,0.00021137,2]
[380032026,1755489039307,-216.85420361,0.00021137,2]
[380032027,1755489039316,-215.75323784,0.00021137,2]
[380032028,1755489039326,-232.18122251,0.00021137,2]
[380032029,1755489039335,-528.58062739,0.00021137,2]
[380032030,1755489039344,-375.82681177,0.00021137,2]
[380032031,1755489039353,-843.81736472,0.00021137,2]
[380032032,1755489039362,-160.0,0.00021137,2]
[380032033,1755489039372,-160.0,0.00021137,2]
[380032034,1755489039381,-8.3224038,0.00021137,2]
[380032301,1755489044059,-253.91329771,0.00021137,2]
[380032522,1755489046660,-154.91902634,0.00021137,2]
[380032523,1755489046669,-155.64743352,0.00021137,10]
[380032524,1755489046680,-461.5599999,0.00021137,10]
[380032725,1755489420510,163.208977,0.00013699,2]
[380032728,1755489431685,2164.43493465,0.00018371,2]
[380032823,1755489752071,1000.0,7.7e-07,120]
[380032824,1755489759304,1000.0,7.7e-07,120]
[380032827,1755489769686,1000.0,7.7e-07,120]
[380032829,1755489780705,1000.0,7.7e-07,120]
[380032830,1755489791117,1000.0,7.7e-07,120]
[380032833,1755489801727,1000.0,7.7e-07,120]
[380032834,1755489809928,1000.0,7.7e-07,120]
[380032835,1755489818672,1000.0,7.7e-07,120]
[380032837,1755489827977,1000.0,7.7e-07,120]
[380032838,1755489842311,1000.0,7.7e-07,120]
[380032840,1755489850823,1000.0,7.7e-07,120]
[380032841,1755489861346,1000.0,7.7e-07,120]
[380032843,1755489870229,1000.0,7.7e-07,120]
[380032845,1755489877695,1000.0,7.7e-07,120]
[380032865,1755490014931,1000.0,6.6e-07,120]
[380032868,1755490022438,1000.0,6.6e-07,120]
[380032869,1755490031585,1000.0,6.6e-07,120]
[380032871,1755490040070,1000.0,6.6e-07,120]
[380032874,1755490049812,1000.0,6.6e-07,120]
[380032877,1755490057495,1000.0,7.7e-07,120]
[380032878,1755490064716,1000.0,7.7e-07,120]
[380032881,1755490076657,1000.0,7.7e-07,120]
[380032882,1755490087302,1000.0,7.7e-07,120]
[380032886,1755490097979,1000.0,7.7e-07,120]
[380032887,1755490105312,1000.0,7.7e-07,120]
[380032888,1755490113063,1000.0,7.7e-07,120]
[380032890,1755490122001,1000.0,7.7e-07,120]
[380032893,1755490136609,1000.0,7.7e-07,120]
[380032895,1755490143699,172.0,7.7e-07,120]
[380032917,1755490235317,-429.06873695,0.00018502,2]
[380032918,1755490235329,-273.93126305,0.00018502,2]
[380032919,1755490235338,-9184.06862767,0.00018503,2]
[380032920,1755490235347,-245.8797268,0.00018603,2]
[380032921,1755490235356,-7491.29988866,0.00018865,2]
[380032922,1755490235370,-267.93593026,0.00018865,2]
[380032923,1755490235379,-268.0,0.00018898,2]
[380032924,1755490235389,-1140.28878927,0.000189,2]
[380032926,1755490235398,-769.0,0.00019069,3]
[380032927,1755490235408,-769.0,0.00019069,3]
[380032928,1755490235419,-769.0,0.00019069,3]
[380032930,1755490235429,-769.0,0.00019069,3]
[380032932,1755490235438,-772.0,0.00019069,3]
[380032934,1755490235447,-482.19079151,0.00019178,2]
[380032935,1755490235459,-497.10432431,0.00019178,2]
[380032937,1755490235468,-480.40223638,0.00019178,2]
[380032939,1755490235477,-1762.0,0.00019265,2]
[380032942,1755490235487,-1762.0,0.00019265,2]
[380032943,1755490235495,-1762.0,0.00019265,2]
[380032945,1755490235504,-1233.0104905,0.00019265,2]
[380032947,1755490235513,-326.0,0.00019634,2]
[380032949,1755490235522,-326.0,0.00019634,2]
[380032951,1755490235532,-224.82833978,0.00019634,2]
[380032953,1755490235541,-326.0,0.00019634,2]
[380032955,1755490235550,-326.0,0.00019634,2]
[380032957,1755490235559,-326.0,0.00019634,2]
[380032959,1755490235569,-1106.41436369,0.00019809,2]
[380032961,1755490235578,-153.0,0.00019836,2]
[380032963,1755490235587,-153.0,0.00019836,2]
[380032964,1755490235597,-153.0,0.00019863,2]
[380032965,1755490235606,-172.78836842,0.00019899,2]
[380032966,1755490235616,-480.0,0.00019899,2]
[380032967,1755490235625,-480.0,0.00019899,2]
[380032968,1755490235634,-10182.40634359,0.000199,2]
[380032969,1755490235644,-151.0,0.00019909,2]
[380032970,1755490235653,-6212.05828078,0.00019909,2]
[380033016,1755490237780,-2940.72902232,0.00019909,2]
[380033017,1755490237886,-6171.09489865,0.00019909,2]
[380033018,1755490237898,-2518.64024625,0.00019909,2]
[380033019,1755490237907,-151.0,0.00019909,2]
[380033020,1755490237915,-151.0,0.00019909,2]
[380033021,1755490237923,-151.0,0.00019909,2]
[380033022,1755490237932,-151.0,0.00019909,2]
[380033023,1755490237941,-151.0,0.00019909,2]
[380033025,1755490237948,-151.0,0.00019909,2]
[380033027,1755490237957,-151.0,0.00019909,2]
[380033029,1755490237966,-151.0,0.00019909,2]
[380033031,1755490237975,-288.59472118,0.00019909,2]
[380033033,1755490237984,-160.0,0.0002,3]
[380033035,1755490237993,-111.43229882,0.00020173,2]
[380033104,1755490240056,-368.56770118,0.00020173,2]
[380033106,1755490240067,-480.0,0.00020173,2]
[380033109,1755490240078,-232.18122251,0.00020221,2]
[380033111,1755490240089,-528.58062739,0.00020221,2]
[380033113,1755490240100,-375.82681177,0.00020221,2]
[380033115,1755490240111,-160.0,0.00020221,2]
[380033117,1755490240122,-843.81736472,0.00020221,2]
[380033119,1755490240132,-160.0,0.00020221,2]
[380033121,1755490240142,-417.15472785,0.00020221,2]
[380033123,1755490240154,-215.75323784,0.00020229,2]
[380033126,1755490240164,-480.0,0.00020254,2]
[380033128,1755490240175,-391.23920431,0.00020315,2]
[380033130,1755490240186,-10182.40634335,0.00020316,2]
[380033132,1755490240198,-153.0,0.00020378,2]
[380033135,1755490240209,-480.0,0.00020447,2]
[380033137,1755490240223,-480.0,0.00020447,2]
[380033139,1755490240234,-469.2252863,0.00020517,2]
[380033141,1755490240245,-480.0,0.00020528,2]
[380033143,1755490240257,-163.208977,0.00020548,2]
[380033145,1755490240268,-162.0,0.00020575,3]
[380033147,1755490240280,-153.0,0.00020578,2]
[380033150,1755490240297,-12683.78573522,0.00020651,2]
[380033152,1755490240316,-153.0,0.00020658,2]
[380033154,1755490240329,-153.0,0.00020658,2]
[380033156,1755490240341,-3161.63,0.00020711,10]
[380033158,1755490240354,-275.45699852,0.00020721,2]
[380033161,1755490240366,-480.0,0.00020721,2]
[380033163,1755490240376,-4552.74,0.00020721,10]
[380033165,1755490240388,-2481.66170382,0.00020721,10]
[380033167,1755490240401,-519.48394604,0.00020721,10]
[380033472,1755490243627,-138.624,0.00020731,2]
[380033474,1755490243668,-2705.8966676,0.00020731,2]
[380034310,1755490411373,696.78,0.00018371,2]
[380034311,1755490461312,155.38072276,0.00027156,60]
[380034319,1755490688350,5000.0,0.00018371,2]
[380034320,1755490705193,5000.0,0.00018371,2]
[380034321,1755490721362,5000.0,0.00018371,2]
[380034322,1755490725400,163.208977,0.00013699,2]
[380034378,1755491432166,-6881.8574384,0.00018556,2]
[380034379,1755491432225,-3118.1425616,0.00018556,2]
[380034380,1755491432235,-248.3955,0.00018811,2]
[380034382,1755491432245,-309.85946595,0.00018881,2]
[380034384,1755491432254,-160.0,0.00018899,2]
[380034386,1755491432264,-860.19252618,0.000189,2]
[380034388,1755491432274,-184.18210763,0.00019157,2]
[380034390,1755491432283,-480.0,0.00019178,2]
[380034393,1755491432293,-480.0,0.00019452,2]
[380034394,1755491432302,-665.0,0.00019649,2]
[380034396,1755491432311,-1200.0,0.00019649,2]
[380034399,1755491432321,-300.0,0.0001965,2]
[380034402,1755491432330,-300.0,0.0001965,2]
[380034405,1755491432339,-300.0,0.0001965,2]
[380034408,1755491432348,-392.77550241,0.0001965,2]
[380034411,1755491432357,-15391.6795928,0.00019651,2]
[380034414,1755491432367,-480.0,0.00019726,2]
[380034416,1755491432376,-168.603469,0.00019863,2]
[380034418,1755491432385,-480.0,0.00019899,2]
[380034420,1755491432394,-500.0,0.00019899,2]
[380034422,1755491432404,-1069.72876766,0.00019899,2]
[380034424,1755491432413,-480.0,0.00019899,2]
[380034426,1755491432422,-9588.51254761,0.000199,2]
[380034428,1755491432431,-3422.83,0.00019999,2]
[380034430,1755491432441,-1158.06954094,0.0002,2]
[380034432,1755491432450,-160.0,0.0002,3]
[380034434,1755491432459,-480.0,0.0002,2]
[380034436,1755491432470,-4000.0,0.00020088,2]
[380034438,1755491432479,-6000.0,0.00020142,2]
[380034440,1755491432488,-8000.0,0.00020146,2]
[380034442,1755491432497,-480.0,0.00020173,2]
[380034444,1755491432507,-480.0,0.00020173,2]
[380034446,1755491432517,-12683.78573522,0.00020181,2]
[380034448,1755491432530,-151.0,0.00020197,2]
[380034450,1755491432540,-151.0,0.00020197,2]
[380034452,1755491432549,-151.0,0.00020197,2]
[380034454,1755491432558,-300.0,0.00020197,2]
[380034456,1755491432569,-151.0,0.00020197,2]
[380034458,1755491432578,-151.0,0.00020197,2]
[380034460,1755491432588,-452.30890406,0.00020197,2]
[380034462,1755491432597,-151.0,0.00020197,2]
[380034464,1755491432607,-300.0,0.00020197,2]
[380034466,1755491432616,-151.0,0.00020197,2]
[380034468,1755491432626,-151.0,0.00020197,2]
[380034470,1755491432635,-300.0,0.00020197,2]
[380034472,1755491432644,-151.0,0.00020197,2]
[380034474,1755491432654,-151.0,0.00020197,2]
[380034476,1755491432663,-300.0,0.00020197,2]
[380034478,1755491432673,-151.0,0.00020197,2]
[380034480,1755491432682,-151.0,0.00020197,2]
[380034482,1755491432691,-300.0,0.00020197,2]
[380034484,1755491432702,-151.0,0.00020197,2]
[380034486,1755491432715,-151.0,0.00020197,2]
[380034488,1755491432725,-300.0,0.00020197,2]
[380034490,1755491432736,-151.0,0.00020197,2]
[380034492,1755491432747,-151.0,0.00020197,2]
[380034494,1755491432762,-300.0,0.00020197,2]
[380034496,1755491432789,-151.0,0.00020197,2]
[380034498,1755491432799,-151.0,0.00020197,2]
[380034500,1755491432810,-300.0,0.00020197,2]
[380034502,1755491432821,-151.0,0.00020197,2]
[380034504,1755491432830,-151.0,0.00020197,2]
[380034506,1755491432839,-300.0,0.00020197,2]
[380034508,1755491432849,-151.0,0.00020197,2]
[380034510,1755491432858,-192.4300278,0.00020197,2]
[380034512,1755491432867,-300.0,0.00020197,2]
[380034514,1755491432879,-151.0,0.00020197,2]
[380034516,1755491432888,-320.7362932,0.00020197,2]
[380034518,1755491432898,-151.0,0.00020197,2]
[380034520,1755491432907,-151.0,0.00020197,2]
[380034522,1755491432916,-151.0,0.00020197,2]
[380034523,1755491432925,-151.0,0.00020197,2]
[380034524,1755491432934,-1000.0,0.00020197,2]
[380034525,1755491432944,-17842.522448,0.00020197,2]
[380034526,1755491432953,-1000.0,0.00020197,2]
[380034527,1755491432962,-567.0,0.00020197,2]
[380034528,1755491432972,-184.340971,0.00020197,2]
[380034529,1755491432981,-184.340971,0.00020197,2]
[380034530,1755491432990,-350.14837,0.00020197,2]
[380034531,1755491432999,-350.14837,0.00020197,2]
[380034532,1755491433009,-151.0,0.00020197,2]
[380034533,1755491433019,-151.0,0.00020197,2]
[380034534,1755491433029,-151.0,0.00020197,2]
[380034535,1755491433039,-151.0,0.00020197,2]
[380034536,1755491433049,-157.201422,0.00020197,2]
[380034537,1755491433059,-151.0,0.00020197,2]
[380034538,1755491433069,-151.0,0.00020197,2]
[380034539,1755491433079,-155.375114,0.00020197,2]
[380034540,1755491433088,-1000.0,0.000202,2]
[380034541,1755491433098,-1000.0,0.000202,2]
[380034542,1755491433108,-1000.0,0.000202,2]
[380034543,1755491433118,-506.74342816,0.00020209,2]
[380034544,1755491433128,-151.0,0.00020209,2]
[380034545,1755491433137,-151.0,0.00020209,2]
[380034546,1755491433147,-151.0,0.00020209,2]
[380034547,1755491433157,-151.0,0.00020209,2]
[380034548,1755491433166,-1424.59106413,0.00020216,2]
[380034549,1755491433176,-1000.0,0.00020221,2]
[380034550,1755491433185,-1000.0,0.00020221,2]
[380034551,1755491433194,-1000.0,0.00020221,2]
[380034552,1755491433204,-1000.0,0.00020221,2]
[380034553,1755491433213,-943.921382,0.00020221,2]
[380034554,1755491433222,-151.0,0.00020221,2]
[380034555,1755491433232,-151.0,0.00020221,2]
[380034556,1755491433241,-151.0,0.00020221,2]
[380034557,1755491433251,-151.0,0.00020221,2]
[380034558,1755491433261,-151.0,0.00020221,2]
[380034559,1755491433270,-151.0,0.00020221,2]
[380034560,1755491433280,-151.0,0.00020221,2]
[380034561,1755491433289,-151.0,0.00020221,2]
[380034562,1755491433299,-184.340971,0.00020221,2]
[380034563,1755491433308,-184.340971,0.00020221,2]
[380034564,1755491433317,-184.340971,0.00020221,2]
[380034565,1755491433326,-184.340971,0.00020221,2]
[380034566,1755491433335,-184.340971,0.00020221,2]
[380034567,1755491433344,-184.340971,0.00020221,2]
[380034568,1755491433354,-184.340971,0.00020221,2]
[380034569,1755491433363,-184.340971,0.00020221,2]
[380034570,1755491433373,-350.14837,0.00020221,2]
[380034571,1755491433383,-350.14837,0.00020221,2]
[380034572,1755491433391,-350.14837,0.00020221,2]
[380034573,1755491433401,-350.14837,0.00020221,2]
[380034574,1755491433410,-350.14837,0.00020221,2]
[380034575,1755491433419,-350.14837,0.00020221,2]
[380034576,1755491433429,-350.14837,0.00020221,2]
[380034577,1755491433438,-350.14837,0.00020221,2]
[380034578,1755491433447,-151.0,0.00020221,2]
[380034579,1755491433457,-151.0,0.00020221,2]
[380034580,1755491433466,-151.0,0.00020221,2]
[380034581,1755491433475,-151.0,0.00020221,2]
[380034582,1755491433485,-151.0,0.00020221,2]
[380034583,1755491433494,-151.0,0.00020221,2]
[380034584,1755491433504,-151.0,0.00020221,2]
[380034585,1755491433513,-151.0,0.00020221,2]
[380034586,1755491433526,-151.0,0.00020221,2]
[380034587,1755491433535,-151.0,0.00020221,2]
[380034588,1755491433544,-151.0,0.00020221,2]
[380034589,1755491433553,-151.0,0.00020221,2]
[380034590,1755491433563,-151.0,0.00020221,2]
[380034591,1755491433572,-151.0,0.00020221,2]
[380034592,1755491433582,-151.0,0.00020221,2]
[380034593,1755491433591,-151.0,0.00020221,2]
[380034594,1755491433602,-156.791669,0.00020221,2]
[380034595,1755491433611,-151.0,0.00020221,2]
[380034596,1755491433620,-151.0,0.00020221,2]
[380034597,1755491433629,-151.0,0.00020221,2]
[380034598,1755491433638,-155.375114,0.00020221,2]
[380034599,1755491433647,-155.375114,0.00020221,2]
[380034600,1755491433656,-155.375114,0.00020221,2]
[380034601,1755491433665,-507.13,0.00020228,3]
[380034602,1755491433674,-676.12,0.00020238,3]
[380034603,1755491433683,-338.06,0.00020238,3]
[380034604,1755491433693,-169.03,0.00020238,3]
[380034605,1755491433703,-151.0,0.00020238,2]
[380034606,1755491433713,-9000.0,0.00020248,2]
[380034607,1755491433722,-480.0,0.00020273,2]
[380034608,1755491433732,-9588.51254757,0.00020316,2]
[380034609,1755491433742,-174.682942,0.00020316,2]
[380034610,1755491433752,-174.682942,0.00020316,2]
[380034611,1755491433762,-151.0,0.00020316,2]
[380034612,1755491433772,-184.340971,0.00020316,2]
[380034613,1755491433781,-184.340971,0.00020316,2]
[380034614,1755491433791,-350.14837,0.00020316,2]
[380034615,1755491433800,-350.14837,0.00020316,2]
[380034616,1755491433809,-151.0,0.00020316,2]
[380034617,1755491433819,-151.0,0.00020316,2]
[380034618,1755491433828,-10000.0,0.00020346,2]
[380034619,1755491433838,-151.0,0.00020346,2]
[380034620,1755491433847,-151.0,0.00020346,2]
[380034621,1755491433857,-461.96815076,0.00020447,2]
[380034622,1755491433867,-151.0,0.00020447,2]
[380034623,1755491433877,-238.872337,0.00020447,2]
[380034624,1755491433887,-480.0,0.00020447,2]
[380034625,1755491433896,-157.907713,0.00020494,14]
[380034626,1755491433905,-151.0,0.00020494,2]
[380034627,1755491433915,-151.0,0.00020494,2]
[380034628,1755491433924,-312.81685754,0.00020517,2]
[380034629,1755491433934,-184.340971,0.00020517,2]
[380034630,1755491433944,-184.340971,0.00020517,2]
[380034631,1755491433954,-350.14837,0.00020517,2]
[380034632,1755491433964,-350.14837,0.00020517,2]
[380034633,1755491433973,-232.18122251,0.00020523,2]
[380034634,1755491433983,-528.58062739,0.00020523,2]
[380034635,1755491433992,-375.82681177,0.00020523,2]
[380034636,1755491434002,-160.0,0.00020523,2]
[380034637,1755491434011,-843.81736472,0.00020523,2]
[380034638,1755491434021,-215.75323784,0.00020523,2]
[380034639,1755491434031,-417.15472785,0.00020523,2]
[380034640,1755491434041,-151.0,0.00020523,2]
[380034641,1755491434051,-151.0,0.00020523,2]
[380034642,1755491434060,-480.0,0.00020547,2]
[380034643,1755491434070,-165.0,0.00020548,3]
[380034644,1755491434079,-825.0,0.00020663,2]
[380034645,1755491434089,-825.0,0.00020705,2]
[380034646,1755491434099,-174.682942,0.00020721,2]
[380034647,1755491434109,-174.682942,0.00020721,2]
[380034648,1755491434119,-151.0,0.00020721,2]
[380034649,1755491434130,-480.0,0.00020721,2]
[380034650,1755491434139,-151.0,0.00020731,2]
[380034651,1755491434148,-248.809721,0.00020731,2]
[380034652,1755491434158,-184.340971,0.00020731,2]
[380034653,1755491434168,-184.340971,0.00020731,2]
[380034654,1755491434178,-350.14837,0.00020731,2]
[380034655,1755491434187,-350.14837,0.00020731,2]
[380034656,1755491434197,-151.0,0.00020731,2]
[380034657,1755491434207,-293.673405,0.00020731,2]
[380034658,1755491434216,-9588.51254757,0.00020731,2]
[380034659,1755491434226,-500.0,0.00020756,2]
[380034660,1755491434235,-500.69341427,0.00020756,2]
[380034661,1755491434245,-500.0,0.00020756,2]
[380034662,1755491434254,-500.0,0.00020756,2]
[380034663,1755491434263,-500.66773722,0.00020756,2]
[380034664,1755491434273,-500.0,0.00020756,2]
[380034665,1755491434282,-500.0,0.00020756,2]
[380034666,1755491434291,-480.0,0.00020821,2]
[380034667,1755491434301,-500.0,0.00020836,2]
[380034668,1755491434310,-500.0,0.00020836,2]
[380034669,1755491434319,-825.0,0.00020864,2]
[380034670,1755491434329,-1069.72876761,0.00020921,2]
[380034671,1755491434338,-160.0,0.00020926,2]
[380034672,1755491434347,-160.0,0.00020926,2]
[380034673,1755491434357,-216.85420361,0.00020926,2]
[380034674,1755491434367,-200.0,0.00020928,3]
[380034675,1755491434376,-200.0,0.00020928,3]
[380034676,1755491434385,-174.682942,0.00020928,2]
[380034677,1755491434395,-174.682942,0.00020928,2]
[380034678,1755491434404,-151.0,0.00020928,2]
[380034679,1755491434413,-151.0,0.00020928,2]
[380034680,1755491434422,-151.0,0.00020929,2]
[380034681,1755491434431,-480.0,0.00020995,2]
[380034682,1755491434440,-150.0,0.00021,2]
[380034683,1755491434449,-160.0,0.00021085,2]
[380034684,1755491434458,-480.0,0.00021095,2]
[380034685,1755491434467,-500.0,0.00021096,2]
[380034686,1755491434476,-150.12655,0.000211,2]
[380034687,1755491434485,-138.18550403,0.00021137,10]
[380034688,1755491434494,-1762.0,0.00021137,2]
[380034689,1755491434503,-1752.0,0.00021137,2]
[380034690,1755491434514,-170.52353577,0.00021137,2]
[380034691,1755491434525,-825.0,0.00021138,2]
[380034692,1755491434534,-2604.0,0.00021138,2]
[380034693,1755491434543,-151.0,0.00021138,2]
[380034694,1755491434553,-184.340971,0.00021138,2]
[380034695,1755491434562,-184.340971,0.00021138,2]
[380034696,1755491434573,-350.14837,0.00021138,2]
[380034697,1755491434582,-350.14837,0.00021138,2]
[380034698,1755491434591,-151.0,0.00021138,2]
[380034699,1755491434604,-160.0,0.00021142,2]
[380034700,1755491434618,-9588.51254757,0.00021147,2]
[380034701,1755491434627,-151.0,0.00021147,2]
[380034702,1755491434637,-151.0,0.00021147,2]
[380034703,1755491434646,-174.682942,0.00021147,2]
[380034704,1755491434656,-174.682942,0.00021147,2]
[380034705,1755491434665,-174.682942,0.00021147,2]
[380034706,1755491434674,-174.682942,0.00021147,2]
[380034707,1755491434684,-174.682942,0.00021147,2]
[380034708,1755491434694,-174.682942,0.00021147,2]
[380034709,1755491434703,-151.0,0.00021147,2]
[380034710,1755491434712,-151.0,0.00021147,2]
[380034711,1755491434722,-151.0,0.00021147,2]
[380034712,1755491434731,-151.0,0.00021147,2]
[380034713,1755491434741,-151.0,0.00021147,2]
[380034714,1755491434750,-151.0,0.00021147,2]
[380034715,1755491434759,-151.0,0.00021147,2]
[380034716,1755491434769,-151.0,0.00021147,2]
[380034717,1755491434778,-151.0,0.00021147,2]
[380034718,1755491434787,-184.340971,0.00021147,2]
[380034719,1755491434796,-184.340974,0.00021147,2]
[380034720,1755491434805,-350.14837,0.00021147,2]
[380034721,1755491434815,-350.148366,0.00021147,2]
[380034722,1755491434824,-151.0,0.00021147,2]
[380034723,1755491434834,-500.0,0.00021152,2]
[380034724,1755491434843,-593.24961039,0.00021152,2]
[380034725,1755491434853,-500.0,0.00021152,2]
[380034726,1755491434862,-500.55398709,0.00021152,2]
[380034727,1755491434872,-174.682942,0.00021152,2]
[380034728,1755491434881,-174.682942,0.00021152,2]
[380034729,1755491434890,-151.0,0.00021152,2]
[380034730,1755491434899,-151.0,0.00021152,2]
[380034731,1755491434909,-151.0,0.00021152,2]
[380034732,1755491434922,-230.0,0.00021158,2]
[380034733,1755491434931,-151.0,0.0002116,2]
[380034734,1755491434941,-825.0,0.00021161,2]
[380034735,1755491434950,-230.0,0.00021161,2]
[380034736,1755491434960,-12683.78573522,0.0002117,10]
[380034737,1755491434970,-299.93906,0.0002117,2]
[380034738,1755491434980,-151.0,0.0002117,2]
[380034739,1755491434989,-174.682942,0.0002117,2]
[380034740,1755491434999,-174.682942,0.0002117,2]
[380034741,1755491435009,-151.0,0.0002117,2]
[380034742,1755491435019,-151.0,0.0002117,2]
[380034743,1755491435028,-417.15472785,0.0002117,10]
[380034744,1755491435037,-375.82681177,0.0002117,10]
[380034745,1755491435047,-215.75323784,0.0002117,10]
[380034746,1755491435056,-151.0,0.00021265,2]
[380034747,1755491435066,-480.0,0.00021269,2]
[380034748,1755491435075,-230.0,0.00021288,2]
[380034749,1755491435084,-1001.3472147,0.00021304,2]
[380034750,1755491435209,-1000.0,0.00021304,2]
[380034751,1755491435220,-1000.0,0.00021304,2]
[380034752,1755491435230,-1000.0,0.00021304,2]
[380034753,1755491435240,-1000.0,0.00021304,2]
[380034754,1755491435249,-825.0,0.00021319,2]
[380034755,1755491435259,-215.0,0.0002132,2]
[380034756,1755491435268,-1424.59106412,0.00021335,2]
[380034757,1755491435278,-480.0,0.00021369,2]
[380034758,1755491435287,-500.0,0.0002137,2]
[380034759,1755491435297,-503.09442521,0.00021384,2]
[380034760,1755491435307,-1000.0,0.00021384,2]